[Event "*** SCC Grand Prix: Titled Tuesday Blitz"]
[Site "Chess.com"]
[Date "2020.10.13"]
[Round "9"]
[White "SamuelGhimpu2003"]
[Black "Witik"]
[Result "0-1"]
[WhiteElo "2576"]
[BlackElo "2741"]
[TimeControl "180+1"]
[EndTime "11:45:33 PDT"]
[Termination "Witik won by resignation"]

1. d4 {[%clk 0:03:00.8]} 1... d6 {[%clk 0:02:59.8]} 2. Nc3 {[%clk 0:02:53.7]}
2... c6 {[%clk 0:02:59.7]} 3. e4 {[%clk 0:02:52.8]} 3... Nd7 {[%clk 0:02:57.8]}
4. f4 {[%clk 0:02:52.1]} 4... e5 {[%clk 0:02:54.3]} 5. Nf3 {[%clk 0:02:53]} 5...
Qa5 {[%clk 0:02:51.6]} 6. Be3 {[%clk 0:02:44.8]} 6... Ngf6 {[%clk 0:02:50.9]} 7.
Qd2 {[%clk 0:02:45.1]} 7... Be7 {[%clk 0:02:40.7]} 8. O-O-O {[%clk 0:02:44.5]}
8... O-O {[%clk 0:02:39]} 9. Kb1 {[%clk 0:02:43.8]} 9... Re8 {[%clk 0:02:23.5]}
10. Ng5 {[%clk 0:02:32.6]} 10... b5 {[%clk 0:02:02.8]} 11. a3 {[%clk 0:02:22.5]}
11... b4 {[%clk 0:01:56]} 12. Na2 {[%clk 0:02:20.3]} 12... exd4 {[%clk
0:01:55.1]} 13. Bxd4 {[%clk 0:02:16.4]} 13... c5 {[%clk 0:01:55.2]} 14. axb4
{[%clk 0:02:15.2]} 14... Qc7 {[%clk 0:01:46.6]} 15. Bc3 {[%clk 0:02:10.5]} 15...
h6 {[%clk 0:01:39]} 16. Bc4 {[%clk 0:01:26.6]} 16... hxg5 {[%clk 0:01:28.9]} 17.
fxg5 {[%clk 0:01:27.5]} 17... cxb4 {[%clk 0:01:13.8]} 18. gxf6 {[%clk
0:01:03.5]} 18... Qxc4 {[%clk 0:01:11.9]} 19. Nxb4 {[%clk 0:00:58.5]} 19... Bxf6
{[%clk 0:01:07.9]} 20. Nd5 {[%clk 0:00:38.4]} 20... Bxc3 {[%clk 0:01:05.8]} 21.
Nxc3 {[%clk 0:00:39.3]} 21... Nc5 {[%clk 0:00:39.8]} 22. Qxd6 {[%clk 0:00:37.8]}
22... Nxe4 {[%clk 0:00:37]} 23. Nxe4 {[%clk 0:00:36.1]} 23... Qxe4 {[%clk
0:00:37.2]} 24. Rhe1 {[%clk 0:00:30.5]} 24... Qxe1 {[%clk 0:00:36.7]} 25. Rxe1
{[%clk 0:00:31.4]} 25... Rxe1+ {[%clk 0:00:35.7]} 26. Ka2 {[%clk 0:00:32.3]}
26... Be6+ {[%clk 0:00:35.1]} 27. b3 {[%clk 0:00:32.6]} 27... Rc8 {[%clk
0:00:32]} 28. Qd2 {[%clk 0:00:33.2]} 28... Re4 {[%clk 0:00:17.7]} 29. c4 {[%clk
0:00:32.4]} 29... Re8 {[%clk 0:00:14.5]} 30. Ka3 {[%clk 0:00:31.1]} 30... g6
{[%clk 0:00:12.3]} 31. h3 {[%clk 0:00:30.6]} 31... Bc8 {[%clk 0:00:11.3]} 32.
Qa5 {[%clk 0:00:23.2]} 32... a6 {[%clk 0:00:11.5]} 33. Kb4 {[%clk 0:00:18.8]}
33... Re3 {[%clk 0:00:11.6]} 34. Qa4 {[%clk 0:00:19.2]} 34... Bf5 {[%clk
0:00:09.8]} 35. Kc5 {[%clk 0:00:12.1]} 35... Bc2 {[%clk 0:00:09.6]} 36. Qxa6
{[%clk 0:00:12.5]} 36... Bxb3 {[%clk 0:00:09.8]} 37. Kb4 {[%clk 0:00:11.3]}
37... R8e6 {[%clk 0:00:09]} 38. Qc8+ {[%clk 0:00:10.9]} 38... Kg7 {[%clk
0:00:09.1]} 39. c5 {[%clk 0:00:11.2]} 39... Bd5 {[%clk 0:00:08]} 40. Qd7 {[%clk
0:00:10.5]} 40... R3e4+ {[%clk 0:00:07.9]} 41. Kc3 {[%clk 0:00:09.4]} 41... Bc6
{[%clk 0:00:08.1]} 42. Qd3 {[%clk 0:00:06.3]} 42... R6e5 {[%clk 0:00:08.2]} 43.
Qd6 {[%clk 0:00:06]} 43... Re6 {[%clk 0:00:08.5]} 44. Qc7 {[%clk 0:00:06.4]}
44... Bd5 {[%clk 0:00:07.4]} 45. Kd3 {[%clk 0:00:06.1]} 45... Rc4 {[%clk
0:00:05.6]} 46. Qd8 {[%clk 0:00:03]} 46... Rxc5 {[%clk 0:00:04.9]} 47. h4 {[%clk
0:00:03.9]} 47... Be4+ {[%clk 0:00:04.7]} 48. Ke3 {[%clk 0:00:04.2]} 48... Bf5+
{[%clk 0:00:04.8]} 49. Kd4 {[%clk 0:00:05.1]} 49... Rce5 {[%clk 0:00:04.8]} 50.
h5 {[%clk 0:00:05.9]} 50... Re4+ {[%clk 0:00:05.3]} 51. Kc3 {[%clk 0:00:06.4]}
51... gxh5 {[%clk 0:00:05.9]} 52. Qg5+ {[%clk 0:00:06]} 52... Bg6 {[%clk
0:00:06.8]} 53. Qc5 {[%clk 0:00:05.4]} 53... Rg4 {[%clk 0:00:05.6]} 54. g3
{[%clk 0:00:04.8]} 54... Rxg3+ {[%clk 0:00:05.6]} 55. Kb4 {[%clk 0:00:05.7]}
55... Rg4+ {[%clk 0:00:06.5]} 56. Ka5 {[%clk 0:00:05.5]} 56... Rf6 {[%clk
0:00:07.4]} 57. Qc3 {[%clk 0:00:05.9]} 57... Rg5+ {[%clk 0:00:07.4]} 58. Kb4
{[%clk 0:00:06.2]} 58... Rg4+ {[%clk 0:00:07.1]} 59. Qc4 {[%clk 0:00:06.6]} 0-1

[Event "*** SCC Grand Prix: Titled Tuesday Blitz"]
[Site "Chess.com"]
[Date "2020.10.13"]
[Round "9"]
[White "Falcon28dz"]
[Black "kleopl"]
[Result "1/2-1/2"]
[WhiteElo "2305"]
[BlackElo "2465"]
[TimeControl "180+1"]
[EndTime "11:45:34 PDT"]
[Termination "Game drawn by repetition"]

1. e4 {[%clk 0:03:00.9]} 1... d5 {[%clk 0:03:00]} 2. exd5 {[%clk 0:02:54.2]}
2... Qxd5 {[%clk 0:03:00.9]} 3. Nc3 {[%clk 0:02:49.8]} 3... Qd6 {[%clk
0:02:59.9]} 4. d4 {[%clk 0:02:48.3]} 4... Nf6 {[%clk 0:02:59.7]} 5. Nf3 {[%clk
0:02:47]} 5... c6 {[%clk 0:03:00.1]} 6. h3 {[%clk 0:02:43.1]} 6... Bf5 {[%clk
0:02:58.8]} 7. Ne5 {[%clk 0:02:39]} 7... Nbd7 {[%clk 0:02:56.6]} 8. Nc4 {[%clk
0:02:37.2]} 8... Qe6+ {[%clk 0:02:42.5]} 9. Be2 {[%clk 0:02:31.8]} 9... Ne4
{[%clk 0:02:42.7]} 10. O-O {[%clk 0:02:25.3]} 10... Nxc3 {[%clk 0:02:34.3]} 11.
bxc3 {[%clk 0:02:26.2]} 11... Qg6 {[%clk 0:02:34.4]} 12. Ne3 {[%clk 0:02:07.5]}
12... Bxh3 {[%clk 0:02:27]} 13. Bh5 {[%clk 0:02:06.8]} 13... Qg5 {[%clk
0:02:26.5]} 14. f4 {[%clk 0:02:06.4]} 14... Qa5 {[%clk 0:02:10.3]} 15. gxh3
{[%clk 0:02:05.8]} 15... Qxc3 {[%clk 0:02:10.5]} 16. Rb1 {[%clk 0:02:00.2]}
16... Nb6 {[%clk 0:02:06.2]} 17. Qd2 {[%clk 0:01:53.5]} 17... Qxd2 {[%clk
0:02:04.8]} 18. Bxd2 {[%clk 0:01:54.4]} 18... e6 {[%clk 0:02:05.3]} 19. c4
{[%clk 0:01:48.8]} 19... g6 {[%clk 0:02:03.5]} 20. Bf3 {[%clk 0:01:47.3]} 20...
O-O-O {[%clk 0:02:02.5]} 21. d5 {[%clk 0:01:06.3]} 21... Bc5 {[%clk 0:02:01.3]}
22. Kg2 {[%clk 0:01:01.4]} 22... Bxe3 {[%clk 0:01:58.6]} 23. Bxe3 {[%clk
0:01:02.3]} 23... Nxc4 {[%clk 0:01:58.8]} 24. Bd4 {[%clk 0:01:01.4]} 24... exd5
{[%clk 0:01:40.9]} 25. Bxh8 {[%clk 0:00:59]} 25... Ne3+ {[%clk 0:01:40.8]} 26.
Kf2 {[%clk 0:00:58.4]} 26... Nxf1 {[%clk 0:01:41.1]} 27. Bc3 {[%clk 0:00:56.9]}
27... d4 {[%clk 0:01:35.9]} 28. Ba5 {[%clk 0:00:55]} 28... b6 {[%clk 0:01:33]}
29. Rxf1 {[%clk 0:00:47.5]} 29... bxa5 {[%clk 0:01:32.5]} 30. Bxc6 {[%clk
0:00:43.4]} 30... Kc7 {[%clk 0:01:32.7]} 31. Be4 {[%clk 0:00:41.1]} 31... Rb8
{[%clk 0:01:31.6]} 32. Rc1+ {[%clk 0:00:39.6]} 32... Kd7 {[%clk 0:01:30.2]} 33.
Rc2 {[%clk 0:00:40.5]} 33... Rb4 {[%clk 0:01:24.8]} 34. Bd3 {[%clk 0:00:39.8]}
34... Kd6 {[%clk 0:01:23.5]} 35. Ke2 {[%clk 0:00:32.6]} 35... f6 {[%clk
0:01:17.5]} 36. Bc4 {[%clk 0:00:32.3]} 36... g5 {[%clk 0:01:16]} 37. fxg5 {[%clk
0:00:31.5]} 37... fxg5 {[%clk 0:01:16.9]} 38. Kd3 {[%clk 0:00:32.2]} 38... Ke5
{[%clk 0:01:07.2]} 39. Re2+ {[%clk 0:00:31.8]} 39... Kf4 {[%clk 0:01:07.6]} 40.
Re4+ {[%clk 0:00:31.5]} 40... Kg3 {[%clk 0:01:07.6]} 41. Rg4+ {[%clk 0:00:30.5]}
41... Kxh3 {[%clk 0:01:06.9]} 42. Rxg5 {[%clk 0:00:31.3]} 42... Kh4 {[%clk
0:01:02.9]} 43. Rxa5 {[%clk 0:00:31.2]} 43... Rb7 {[%clk 0:01:01.1]} 44. Kxd4
{[%clk 0:00:27.3]} 44... Kg4 {[%clk 0:00:59.5]} 45. Ra6 {[%clk 0:00:16.8]} 45...
Re7 {[%clk 0:00:55.8]} 46. Re6 {[%clk 0:00:15.8]} 46... Rd7+ {[%clk 0:00:54.6]}
47. Bd5 {[%clk 0:00:14.3]} 47... h5 {[%clk 0:00:53.7]} 48. a4 {[%clk 0:00:13.4]}
48... h4 {[%clk 0:00:53.5]} 49. a5 {[%clk 0:00:13.3]} 49... h3 {[%clk
0:00:53.6]} 50. Rh6 {[%clk 0:00:12.2]} 50... Kg3 {[%clk 0:00:53.4]} 51. a6
{[%clk 0:00:12.2]} 51... h2 {[%clk 0:00:51.7]} 52. Kc5 {[%clk 0:00:12.5]} 52...
Rg7 {[%clk 0:00:49.7]} 53. Bb7 {[%clk 0:00:10.3]} 53... Rg5+ {[%clk 0:00:46.7]}
54. Kc6 {[%clk 0:00:09.9]} 54... Rg7 {[%clk 0:00:45.2]} 55. Kd6 {[%clk 0:00:08]}
55... Rf7 {[%clk 0:00:41.8]} 56. Rg6+ {[%clk 0:00:07.8]} 56... Kf2 {[%clk
0:00:39.8]} 57. Rg2+ {[%clk 0:00:06.2]} 57... Ke3 {[%clk 0:00:39.9]} 58. Rxh2
{[%clk 0:00:07.1]} 58... Kd4 {[%clk 0:00:38.4]} 59. Rh8 {[%clk 0:00:07.3]} 59...
Kc4 {[%clk 0:00:38]} 60. Ra8 {[%clk 0:00:06.6]} 60... Kb5 {[%clk 0:00:38.3]} 61.
Rxa7 {[%clk 0:00:07.1]} 61... Rf8 {[%clk 0:00:36.4]} 62. Kc7 {[%clk 0:00:03.5]}
62... Rf7+ {[%clk 0:00:36]} 63. Kb8 {[%clk 0:00:03.9]} 63... Kb6 {[%clk
0:00:34.7]} 64. Ra8 {[%clk 0:00:02.9]} 64... Rf8+ {[%clk 0:00:34.2]} 65. Bc8
{[%clk 0:00:03.5]} 65... Rf7 {[%clk 0:00:33.8]} 66. Bd7 {[%clk 0:00:02.8]} 66...
Rf8+ {[%clk 0:00:33.2]} 67. Bc8 {[%clk 0:00:03.6]} 67... Rf7 {[%clk 0:00:33.6]}
68. Bd7 {[%clk 0:00:01.8]} 68... Rf8+ {[%clk 0:00:33.8]} 69. Bc8 {[%clk
0:00:02]} 1/2-1/2

[Event "*** SCC Grand Prix: Titled Tuesday Blitz"]
[Site "Chess.com"]
[Date "2020.10.13"]
[Round "9"]
[White "lucachess49"]
[Black "Aguiar94"]
[Result "0-1"]
[WhiteElo "2406"]
[BlackElo "2579"]
[TimeControl "180+1"]
[EndTime "11:45:36 PDT"]
[Termination "Aguiar94 won on time"]

1. d4 {[%clk 0:02:59.3]} 1... Nf6 {[%clk 0:02:58.5]} 2. c4 {[%clk 0:03:00.2]}
2... e6 {[%clk 0:02:55.3]} 3. Nc3 {[%clk 0:02:59.5]} 3... Bb4 {[%clk 0:02:55.2]}
4. e3 {[%clk 0:02:59.1]} 4... O-O {[%clk 0:02:54.4]} 5. Ne2 {[%clk 0:02:58.3]}
5... Re8 {[%clk 0:02:54.5]} 6. a3 {[%clk 0:02:58.8]} 6... Bf8 {[%clk 0:02:53.8]}
7. Ng3 {[%clk 0:02:59.4]} 7... e5 {[%clk 0:02:53.5]} 8. Be2 {[%clk 0:02:54.5]}
8... c5 {[%clk 0:02:48.1]} 9. dxc5 {[%clk 0:02:48.3]} 9... Bxc5 {[%clk 0:02:49]}
10. O-O {[%clk 0:02:48]} 10... a5 {[%clk 0:02:45.6]} 11. Rb1 {[%clk 0:02:45.7]}
11... Nc6 {[%clk 0:02:44.5]} 12. Nce4 {[%clk 0:02:35.8]} 12... Nxe4 {[%clk
0:02:43.3]} 13. Nxe4 {[%clk 0:02:36.7]} 13... Bf8 {[%clk 0:02:43.4]} 14. Nd6
{[%clk 0:02:35.8]} 14... Re6 {[%clk 0:02:42.7]} 15. Nxc8 {[%clk 0:02:22.5]}
15... Rxc8 {[%clk 0:02:41.2]} 16. Bd2 {[%clk 0:02:23.3]} 16... d5 {[%clk
0:02:36.5]} 17. Bg4 {[%clk 0:02:14.8]} 17... dxc4 {[%clk 0:02:32.5]} 18. Bxe6
{[%clk 0:02:14.1]} 18... fxe6 {[%clk 0:02:33.4]} 19. Bc3 {[%clk 0:02:13.3]}
19... b5 {[%clk 0:02:21.9]} 20. Qg4 {[%clk 0:02:09.7]} 20... Qe8 {[%clk
0:02:14]} 21. f4 {[%clk 0:02:09]} 21... b4 {[%clk 0:01:58.4]} 22. Bxe5 {[%clk
0:02:06.3]} 22... Nxe5 {[%clk 0:01:55.2]} 23. fxe5 {[%clk 0:02:07.2]} 23... c3
{[%clk 0:01:54.1]} 24. bxc3 {[%clk 0:02:06.8]} 24... bxc3 {[%clk 0:01:54.9]} 25.
Rbc1 {[%clk 0:01:51.3]} 25... Bxa3 {[%clk 0:01:50.6]} 26. Rc2 {[%clk 0:01:50.9]}
26... Bb2 {[%clk 0:01:50.9]} 27. Rf6 {[%clk 0:01:29.9]} 27... a4 {[%clk
0:01:29.1]} 28. Qxe6+ {[%clk 0:00:50.9]} 28... Qxe6 {[%clk 0:01:28]} 29. Rxe6
{[%clk 0:00:51.8]} 29... a3 {[%clk 0:01:18.7]} 30. Ra6 {[%clk 0:00:51.2]} 30...
Rd8 {[%clk 0:01:12.7]} 31. Kf1 {[%clk 0:00:36]} 31... Rd5 {[%clk 0:00:49.4]} 32.
e6 {[%clk 0:00:28.9]} 32... g6 {[%clk 0:00:49.7]} 33. Ra8+ {[%clk 0:00:20]}
33... Kg7 {[%clk 0:00:49.7]} 34. e7 {[%clk 0:00:20.2]} 34... Re5 {[%clk
0:00:49.7]} 35. e8=Q {[%clk 0:00:15.1]} 35... Rxe8 {[%clk 0:00:49.9]} 36. Rxe8
{[%clk 0:00:15.9]} 36... a2 {[%clk 0:00:49.4]} 37. Ra8 {[%clk 0:00:16.5]} 37...
a1=Q+ {[%clk 0:00:49.2]} 38. Rxa1 {[%clk 0:00:16.9]} 38... Bxa1 {[%clk
0:00:50.1]} 39. Ke2 {[%clk 0:00:16.8]} 39... Kf6 {[%clk 0:00:50]} 40. Kd3 {[%clk
0:00:16.7]} 40... Ke5 {[%clk 0:00:50.4]} 41. Rxc3 {[%clk 0:00:16.4]} 41... Bxc3
{[%clk 0:00:49.6]} 42. Kxc3 {[%clk 0:00:17.3]} 42... Ke4 {[%clk 0:00:50.1]} 43.
Kd2 {[%clk 0:00:17.5]} 43... g5 {[%clk 0:00:49.7]} 44. Ke2 {[%clk 0:00:17.5]}
44... g4 {[%clk 0:00:49.6]} 45. Kf2 {[%clk 0:00:11.9]} 45... h5 {[%clk 0:00:48]}
46. Ke2 {[%clk 0:00:09.3]} 46... h4 {[%clk 0:00:47.3]} 47. Kd2 {[%clk
0:00:08.9]} 47... h3 {[%clk 0:00:38.4]} 48. g3 {[%clk 0:00:05.5]} 48... Kf3
{[%clk 0:00:37.1]} 49. Kd3 {[%clk 0:00:05.3]} 49... Kg2 {[%clk 0:00:37.6]} 50.
e4 {[%clk 0:00:05.7]} 50... Kxh2 {[%clk 0:00:38.1]} 51. e5 {[%clk 0:00:05.9]}
51... Kxg3 {[%clk 0:00:38.5]} 52. e6 {[%clk 0:00:06.4]} 52... h2 {[%clk
0:00:39.1]} 53. e7 {[%clk 0:00:06.9]} 53... h1=Q {[%clk 0:00:39.7]} 54. e8=Q
{[%clk 0:00:07.1]} 54... Qd1+ {[%clk 0:00:40]} 55. Kc3 {[%clk 0:00:07.1]} 55...
Qa1+ {[%clk 0:00:39.3]} 56. Kd2 {[%clk 0:00:07.1]} 56... Qb2+ {[%clk 0:00:37.7]}
57. Kd3 {[%clk 0:00:06.6]} 57... Qb1+ {[%clk 0:00:37.3]} 58. Kd2 {[%clk
0:00:06.7]} 58... Qb2+ {[%clk 0:00:36.3]} 59. Kd3 {[%clk 0:00:06.6]} 59... Qb3+
{[%clk 0:00:35]} 60. Kd2 {[%clk 0:00:06.9]} 60... Qf3 {[%clk 0:00:34.5]} 61. Qe7
{[%clk 0:00:03.2]} 61... Kg2 {[%clk 0:00:32.9]} 62. Ke1 {[%clk 0:00:03.1]} 62...
Qf2+ {[%clk 0:00:31.9]} 63. Kd1 {[%clk 0:00:02.8]} 63... g3 {[%clk 0:00:31.1]}
64. Qe5 {[%clk 0:00:02.8]} 64... Kg1 {[%clk 0:00:28.1]} 65. Qg5 {[%clk
0:00:01.7]} 65... Qf3+ {[%clk 0:00:26.6]} 66. Ke1 {[%clk 0:00:01.1]} 66... Qf1+
{[%clk 0:00:23.4]} 0-1

[Event "*** SCC Grand Prix: Titled Tuesday Blitz"]
[Site "Chess.com"]
[Date "2020.10.13"]
[Round "9"]
[White "Aygehovit1992"]
[Black "kuban1991"]
[Result "1/2-1/2"]
[WhiteElo "2648"]
[BlackElo "2814"]
[TimeControl "180+1"]
[EndTime "11:45:37 PDT"]
[Termination "Game drawn - insufficient material"]

1. e4 {[%clk 0:03:00]} 1... e6 {[%clk 0:03:00.2]} 2. d4 {[%clk 0:02:59.8]} 2...
d5 {[%clk 0:03:01.1]} 3. Nc3 {[%clk 0:02:59.9]} 3... Bb4 {[%clk 0:03:00.9]} 4.
e5 {[%clk 0:03:00]} 4... c5 {[%clk 0:03:01.3]} 5. a3 {[%clk 0:03:00.3]} 5...
Bxc3+ {[%clk 0:03:01.9]} 6. bxc3 {[%clk 0:03:01.2]} 6... Nc6 {[%clk 0:03:02.7]}
7. Qg4 {[%clk 0:03:00.4]} 7... g6 {[%clk 0:03:03.1]} 8. Nf3 {[%clk 0:03:00.1]}
8... Bd7 {[%clk 0:03:03.4]} 9. h4 {[%clk 0:02:57.8]} 9... h6 {[%clk 0:03:02.5]}
10. Bd3 {[%clk 0:02:51.5]} 10... Nge7 {[%clk 0:02:56.3]} 11. dxc5 {[%clk
0:02:44.2]} 11... Qa5 {[%clk 0:02:55.4]} 12. Bd2 {[%clk 0:02:44.3]} 12... O-O-O
{[%clk 0:02:52.7]} 13. Qf4 {[%clk 0:02:29.3]} 13... Nf5 {[%clk 0:02:48.3]} 14.
g4 {[%clk 0:01:14.3]} 14... g5 {[%clk 0:02:46.9]} 15. Qh2 {[%clk 0:01:03.2]}
15... Nxh4 {[%clk 0:02:45.1]} 16. Nxh4 {[%clk 0:01:03.7]} 16... gxh4 {[%clk
0:02:46]} 17. f4 {[%clk 0:01:01.9]} 17... Qxc5 {[%clk 0:02:38.8]} 18. Qxh4
{[%clk 0:01:01.2]} 18... d4 {[%clk 0:02:36.1]} 19. Qf2 {[%clk 0:00:46]} 19...
Qd5 {[%clk 0:02:31.6]} 20. Rg1 {[%clk 0:00:39.3]} 20... dxc3 {[%clk 0:02:27]}
21. Bxc3 {[%clk 0:00:40.2]} 21... h5 {[%clk 0:02:21.4]} 22. g5 {[%clk
0:00:40.5]} 22... h4 {[%clk 0:02:21.5]} 23. O-O-O {[%clk 0:00:40.4]} 23... h3
{[%clk 0:02:08.7]} 24. Bf1 {[%clk 0:00:25.5]} 24... Qe4 {[%clk 0:01:51.2]} 25.
Re1 {[%clk 0:00:24.7]} 25... Qa4 {[%clk 0:01:47.1]} 26. Bb2 {[%clk 0:00:24.9]}
26... Na5 {[%clk 0:01:39.2]} 27. Rg3 {[%clk 0:00:23.9]} 27... h2 {[%clk
0:01:37.3]} 28. Bg2 {[%clk 0:00:23.9]} 28... Bc6 {[%clk 0:01:37]} 29. Rh1 {[%clk
0:00:22]} 29... Kb8 {[%clk 0:01:13]} 30. Bxc6 {[%clk 0:00:20.1]} 30... Qxc6
{[%clk 0:01:13.9]} 31. Rxh2 {[%clk 0:00:17.6]} 31... Rxh2 {[%clk 0:01:12]} 32.
Qxh2 {[%clk 0:00:18.5]} 32... Qe4 {[%clk 0:01:09.5]} 33. Qf2 {[%clk 0:00:15.9]}
33... Nc4 {[%clk 0:01:08.5]} 34. Bc3 {[%clk 0:00:08.7]} 34... Rh8 {[%clk
0:01:01.5]} 35. Rg1 {[%clk 0:00:06.1]} 35... Rh3 {[%clk 0:00:58.2]} 36. Qd4
{[%clk 0:00:05.8]} 36... Qxd4 {[%clk 0:00:52]} 37. Bxd4 {[%clk 0:00:06.7]} 37...
Rf3 {[%clk 0:00:52.7]} 38. g6 {[%clk 0:00:06.1]} 38... fxg6 {[%clk 0:00:52.1]}
39. c3 {[%clk 0:00:04.7]} 39... Rxf4 {[%clk 0:00:43]} 40. Rxg6 {[%clk
0:00:04.7]} 40... Nxa3 {[%clk 0:00:41.2]} 41. Rxe6 {[%clk 0:00:05]} 41... Nb5
{[%clk 0:00:38.6]} 42. Bc5 {[%clk 0:00:04.3]} 42... b6 {[%clk 0:00:35.4]} 43.
Bd6+ {[%clk 0:00:03.8]} 43... Kb7 {[%clk 0:00:35.4]} 44. Re7+ {[%clk 0:00:03.8]}
44... Kc6 {[%clk 0:00:35.9]} 45. Bb8 {[%clk 0:00:04]} 45... a5 {[%clk
0:00:35.8]} 46. e6 {[%clk 0:00:03.8]} 46... Re4 {[%clk 0:00:34.5]} 47. Re8
{[%clk 0:00:02.7]} 47... Kb7 {[%clk 0:00:29.6]} 48. Kc2 {[%clk 0:00:02.2]} 48...
a4 {[%clk 0:00:26.3]} 49. c4 {[%clk 0:00:02.1]} 49... Nd4+ {[%clk 0:00:25.2]}
50. Kd3 {[%clk 0:00:02.1]} 50... Rxe6 {[%clk 0:00:25.3]} 51. Rxe6 {[%clk
0:00:02.4]} 51... Nxe6 {[%clk 0:00:26.2]} 52. Be5 {[%clk 0:00:03.2]} 52... Kc6
{[%clk 0:00:22.3]} 53. Bb2 {[%clk 0:00:03.5]} 53... Nc5+ {[%clk 0:00:09.7]} 54.
Kc3 {[%clk 0:00:03.5]} 54... Ne4+ {[%clk 0:00:09.7]} 55. Kb4 {[%clk 0:00:03.8]}
55... Nd6 {[%clk 0:00:09.1]} 56. Be5 {[%clk 0:00:03.2]} 56... a3 {[%clk
0:00:06.2]} 57. Bxd6 {[%clk 0:00:03]} 57... Kxd6 {[%clk 0:00:06.1]} 58. Kxa3
{[%clk 0:00:03.4]} 58... Kc5 {[%clk 0:00:07]} 59. Kb3 {[%clk 0:00:04]} 59... b5
{[%clk 0:00:07.9]} 60. cxb5 {[%clk 0:00:04.9]} 60... Kxb5 {[%clk 0:00:08.8]}
1/2-1/2

[Event "*** SCC Grand Prix: Titled Tuesday Blitz"]
[Site "Chess.com"]
[Date "2020.10.13"]
[Round "9"]
[White "pastouche06"]
[Black "Chessalary"]
[Result "1-0"]
[WhiteElo "2474"]
[BlackElo "2298"]
[TimeControl "180+1"]
[EndTime "11:45:38 PDT"]
[Termination "pastouche06 won on time"]

1. d4 {[%clk 0:03:00.9]} 1... Nf6 {[%clk 0:02:58.1]} 2. c4 {[%clk 0:02:58.5]}
2... e6 {[%clk 0:02:58]} 3. Nc3 {[%clk 0:02:58.2]} 3... Bb4 {[%clk 0:02:56.7]}
4. e3 {[%clk 0:02:57.1]} 4... O-O {[%clk 0:02:55.1]} 5. Ne2 {[%clk 0:02:57.4]}
5... Bxc3+ {[%clk 0:02:54.5]} 6. Nxc3 {[%clk 0:02:58.3]} 6... d5 {[%clk
0:02:54]} 7. Bd3 {[%clk 0:02:53.4]} 7... Nbd7 {[%clk 0:02:52.9]} 8. cxd5 {[%clk
0:02:52]} 8... exd5 {[%clk 0:02:52.8]} 9. O-O {[%clk 0:02:52.2]} 9... b6 {[%clk
0:02:52.6]} 10. Bd2 {[%clk 0:02:45.9]} 10... Bb7 {[%clk 0:02:52.2]} 11. b4
{[%clk 0:02:45.4]} 11... Re8 {[%clk 0:02:50.6]} 12. f3 {[%clk 0:02:30.9]} 12...
Rc8 {[%clk 0:02:49.9]} 13. b5 {[%clk 0:02:26.8]} 13... Nf8 {[%clk 0:02:43.4]}
14. a4 {[%clk 0:02:21.5]} 14... c6 {[%clk 0:02:33.9]} 15. bxc6 {[%clk
0:02:20.6]} 15... Bxc6 {[%clk 0:02:34.2]} 16. a5 {[%clk 0:02:17.5]} 16... N8d7
{[%clk 0:02:27.2]} 17. axb6 {[%clk 0:02:14.8]} 17... axb6 {[%clk 0:02:28.1]} 18.
Nb5 {[%clk 0:02:12.6]} 18... Ra8 {[%clk 0:02:09.8]} 19. Qb3 {[%clk 0:02:06.5]}
19... Qb8 {[%clk 0:01:56.1]} 20. Rxa8 {[%clk 0:02:03]} 20... Bxa8 {[%clk
0:01:57]} 21. Qb4 {[%clk 0:01:50.9]} 21... Bc6 {[%clk 0:01:52.2]} 22. Ra1 {[%clk
0:01:50.7]} 22... Nf8 {[%clk 0:01:45.2]} 23. Bf5 {[%clk 0:01:21.6]} 23... g6
{[%clk 0:01:31.1]} 24. Bd3 {[%clk 0:01:21]} 24... Kg7 {[%clk 0:01:23.6]} 25. Qb2
{[%clk 0:01:13.6]} 25... Ne6 {[%clk 0:01:18.6]} 26. Be1 {[%clk 0:01:02.1]} 26...
Nc7 {[%clk 0:01:11.8]} 27. Bg3 {[%clk 0:00:39.9]} 27... Bxb5 {[%clk 0:00:52.4]}
28. Bxb5 {[%clk 0:00:40]} 28... Re7 {[%clk 0:00:29.7]} 29. Rc1 {[%clk
0:00:28.9]} 29... Qd8 {[%clk 0:00:28.6]} 30. Bd3 {[%clk 0:00:26.6]} 30... Nce8
{[%clk 0:00:24.9]} 31. Bf2 {[%clk 0:00:25.7]} 31... Nd6 {[%clk 0:00:24.4]} 32.
Qb4 {[%clk 0:00:20.2]} 32... Rc7 {[%clk 0:00:22.5]} 33. Rb1 {[%clk 0:00:15.6]}
33... b5 {[%clk 0:00:18.5]} 34. Bg3 {[%clk 0:00:15]} 34... Rd7 {[%clk
0:00:17.5]} 35. Bxb5 {[%clk 0:00:13.6]} 35... Nxb5 {[%clk 0:00:17.2]} 36. Qxb5
{[%clk 0:00:14.5]} 36... Re7 {[%clk 0:00:17.5]} 37. Be5 {[%clk 0:00:14.3]} 37...
Re6 {[%clk 0:00:17]} 38. Rc1 {[%clk 0:00:10.8]} 38... Kh6 {[%clk 0:00:15.8]} 39.
Rc6 {[%clk 0:00:08.3]} 39... Qe7 {[%clk 0:00:14.6]} 40. Rxe6 {[%clk 0:00:06.3]}
40... Qxe6 {[%clk 0:00:15.5]} 41. Bxf6 {[%clk 0:00:06.2]} 41... Qxf6 {[%clk
0:00:13.8]} 42. Qxd5 {[%clk 0:00:05.9]} 42... Qb6 {[%clk 0:00:14.1]} 43. Qe4
{[%clk 0:00:05]} 43... Qb4 {[%clk 0:00:10.7]} 44. h3 {[%clk 0:00:04.3]} 44...
Qe1+ {[%clk 0:00:09.7]} 45. Kh2 {[%clk 0:00:04.4]} 45... Qd2 {[%clk 0:00:09.2]}
46. d5 {[%clk 0:00:04.4]} 46... Kg7 {[%clk 0:00:08.5]} 47. Qe5+ {[%clk
0:00:04.8]} 47... Kg8 {[%clk 0:00:06.7]} 48. d6 {[%clk 0:00:05]} 48... h5 {[%clk
0:00:04.5]} 49. h4 {[%clk 0:00:05.3]} 49... Kh7 {[%clk 0:00:04.5]} 50. Qe7
{[%clk 0:00:03.8]} 50... Kg7 {[%clk 0:00:01]} 51. d7 {[%clk 0:00:04]} 1-0